[Event "*** Titled Tuesday Blitz"]
[Site "Chess.com"]
[Date "2019.12.03"]
[Round "9"]
[White "Heineccius"]
[Black "INLOVEWITHF"]
[Result "1-0"]
[WhiteElo "2638"]
[BlackElo "2453"]
[TimeControl "180+2"]
[EndTime "15:07:08 PST"]
[Termination "Heineccius won by resignation"]

1. d4 {[%clk 0:03:01.9]} 1... d5 {[%clk 0:02:59.4]} 2. c4 {[%clk 0:03:02.9]}
2... c6 {[%clk 0:03:00.2]} 3. Nf3 {[%clk 0:03:03.3]} 3... Nf6 {[%clk 0:03:01.8]}
4. e3 {[%clk 0:03:04.2]} 4... Bf5 {[%clk 0:03:01]} 5. Nc3 {[%clk 0:03:04.1]}
5... e6 {[%clk 0:03:02.3]} 6. Nh4 {[%clk 0:03:04.4]} 6... Be4 {[%clk 0:03:03.5]}
7. f3 {[%clk 0:03:04.5]} 7... Bg6 {[%clk 0:03:05.1]} 8. g3 {[%clk 0:03:03.8]}
8... Be7 {[%clk 0:03:02.9]} 9. Qb3 {[%clk 0:03:03.8]} 9... Qb6 {[%clk
0:03:03.1]} 10. c5 {[%clk 0:03:04.2]} 10... Qxb3 {[%clk 0:03:02.3]} 11. axb3
{[%clk 0:03:04.2]} 11... Nbd7 {[%clk 0:02:56.1]} 12. b4 {[%clk 0:03:04.7]} 12...
O-O {[%clk 0:02:53.8]} 13. b5 {[%clk 0:03:01.6]} 13... e5 {[%clk 0:02:54.3]} 14.
Nxg6 {[%clk 0:03:00.1]} 14... hxg6 {[%clk 0:02:55.1]} 15. Kf2 {[%clk 0:02:50.5]}
15... exd4 {[%clk 0:02:55.2]} 16. exd4 {[%clk 0:02:51.4]} 16... Rfc8 {[%clk
0:01:57.6]} 17. Bh3 {[%clk 0:02:44.4]} 17... cxb5 {[%clk 0:01:45]} 18. Bxd7
{[%clk 0:02:20.9]} 18... Nxd7 {[%clk 0:01:46.9]} 19. Nxd5 {[%clk 0:02:22.2]}
19... Bf8 {[%clk 0:01:30]} 20. Bf4 {[%clk 0:02:14.9]} 20... Nf6 {[%clk 0:00:46]}
21. Nc7 {[%clk 0:02:06.7]} 21... g5 {[%clk 0:00:38.8]} 22. Nxa8 {[%clk
0:02:02.3]} 22... gxf4 {[%clk 0:00:38.1]} 23. Rxa7 {[%clk 0:02:02.8]} 23... Rxc5
{[%clk 0:00:35.1]} 24. dxc5 {[%clk 0:02:02.3]} 24... Bxc5+ {[%clk 0:00:37]} 25.
Kg2 {[%clk 0:02:03.4]} 25... Bxa7 {[%clk 0:00:38.5]} 26. Nc7 {[%clk 0:02:02]}
26... Bd4 {[%clk 0:00:31.1]} 27. b3 {[%clk 0:01:39.3]} 27... b4 {[%clk
0:00:32.2]} 28. Rd1 {[%clk 0:01:27.4]} 28... Bc3 {[%clk 0:00:28.5]} 29. Nd5
{[%clk 0:01:16.8]} 29... Nxd5 {[%clk 0:00:27.1]} 30. Rxd5 {[%clk 0:01:17.9]}
30... fxg3 {[%clk 0:00:29]} 31. hxg3 {[%clk 0:01:19]} 31... b6 {[%clk
0:00:22.6]} 32. Rb5 {[%clk 0:01:19.7]} 32... f6 {[%clk 0:00:19.6]} 33. Rxb6
{[%clk 0:01:20]} 33... Kf7 {[%clk 0:00:21.5]} 34. Rb7+ {[%clk 0:01:20.7]} 34...
Kg6 {[%clk 0:00:22.6]} 35. f4 {[%clk 0:01:22]} 35... Kf5 {[%clk 0:00:21.9]} 36.
Kf3 {[%clk 0:01:23.1]} 36... g5 {[%clk 0:00:23.3]} 37. g4+ {[%clk 0:01:21.5]}
37... Ke6 {[%clk 0:00:23.5]} 38. f5+ {[%clk 0:01:18.5]} 38... Kd5 {[%clk
0:00:23.7]} 39. Rd7+ {[%clk 0:01:11.4]} 39... Ke5 {[%clk 0:00:21]} 40. Ke3
{[%clk 0:01:09.3]} 40... Bd4+ {[%clk 0:00:22.3]} 41. Kd3 {[%clk 0:00:59.2]}
41... Bc3 {[%clk 0:00:23.2]} 42. Re7+ {[%clk 0:00:57.8]} 42... Kf4 {[%clk
0:00:23.4]} 43. Re4+ {[%clk 0:00:58.1]} 43... Kg3 {[%clk 0:00:22.6]} 44. Rc4
{[%clk 0:00:50.1]} 44... Kf3 {[%clk 0:00:21.2]} 45. Rxc3 {[%clk 0:00:37.1]}
45... bxc3 {[%clk 0:00:23.1]} 46. b4 {[%clk 0:00:38.5]} 46... c2 {[%clk
0:00:06.8]} 47. Kxc2 {[%clk 0:00:38.4]} 47... Kxg4 {[%clk 0:00:07.4]} 48. b5
{[%clk 0:00:38.9]} 48... Kf3 {[%clk 0:00:07.8]} 49. b6 {[%clk 0:00:39.7]} 49...
g4 {[%clk 0:00:09.1]} 50. b7 {[%clk 0:00:40.8]} 50... g3 {[%clk 0:00:10.6]} 51.
b8=Q {[%clk 0:00:41]} 51... g2 {[%clk 0:00:11.8]} 52. Qb6 {[%clk 0:00:41.3]}
52... Kg3 {[%clk 0:00:12.4]} 53. Qg1 {[%clk 0:00:42]} 1-0

[Event "*** Titled Tuesday Blitz"]
[Site "Chess.com"]
[Date "2019.12.03"]
[Round "9"]
[White "M1711"]
[Black "bluejay1897"]
[Result "1-0"]
[WhiteElo "2517"]
[BlackElo "2369"]
[TimeControl "180+2"]
[EndTime "15:07:18 PST"]
[Termination "M1711 won by resignation"]

1. e4 {[%clk 0:03:01.9]} 1... c5 {[%clk 0:03:00.6]} 2. Nf3 {[%clk 0:03:02.6]}
2... e6 {[%clk 0:03:01.7]} 3. d4 {[%clk 0:03:01.8]} 3... cxd4 {[%clk 0:03:03.6]}
4. Bg5 {[%clk 0:03:02.7]} 4... Qa5+ {[%clk 0:02:55]} 5. c3 {[%clk 0:03:02.4]}
5... dxc3 {[%clk 0:02:52.1]} 6. Nxc3 {[%clk 0:03:04.3]} 6... Nc6 {[%clk
0:02:48]} 7. Bd2 {[%clk 0:03:01.6]} 7... Qb6 {[%clk 0:02:39.3]} 8. Bc4 {[%clk
0:02:55.1]} 8... Nge7 {[%clk 0:02:34.5]} 9. O-O {[%clk 0:02:54.3]} 9... Ng6
{[%clk 0:02:34.5]} 10. Qe2 {[%clk 0:02:27.1]} 10... Be7 {[%clk 0:02:19.1]} 11.
Rfd1 {[%clk 0:02:07.3]} 11... O-O {[%clk 0:02:16.6]} 12. Rac1 {[%clk 0:02:04.5]}
12... a6 {[%clk 0:02:16.9]} 13. Bb3 {[%clk 0:02:01.4]} 13... Bf6 {[%clk
0:01:53.8]} 14. Na4 {[%clk 0:01:57.1]} 14... Qc7 {[%clk 0:01:48]} 15. Be3 {[%clk
0:01:54.4]} 15... b5 {[%clk 0:01:40.9]} 16. Nb6 {[%clk 0:01:47.9]} 16... Rb8
{[%clk 0:01:38.5]} 17. Nd5 {[%clk 0:01:30.7]} 17... exd5 {[%clk 0:01:32.1]} 18.
exd5 {[%clk 0:01:32.6]} 18... Bb7 {[%clk 0:01:23.2]} 19. dxc6 {[%clk 0:01:32.6]}
19... Bxc6 {[%clk 0:01:18.2]} 20. Bc5 {[%clk 0:01:11.7]} 20... Rfe8 {[%clk
0:01:14.8]} 21. Qd3 {[%clk 0:01:05.3]} 21... Qb7 {[%clk 0:01:14.5]} 22. Qf5
{[%clk 0:00:39.3]} 22... Bxf3 {[%clk 0:00:33.4]} 23. Rxd7 {[%clk 0:00:38.8]}
23... Qe4 {[%clk 0:00:25.3]} 24. Bxf7+ {[%clk 0:00:38.5]} 24... Kh8 {[%clk
0:00:25.9]} 25. Qxe4 {[%clk 0:00:34.8]} 25... Bxe4 {[%clk 0:00:20.9]} 26. Bxe8
{[%clk 0:00:34.3]} 26... Rxe8 {[%clk 0:00:21.1]} 27. Re1 {[%clk 0:00:30.3]}
27... Nf4 {[%clk 0:00:11.5]} 28. f3 {[%clk 0:00:14.6]} 28... Bg6 {[%clk
0:00:11.8]} 29. Rxe8+ {[%clk 0:00:13.4]} 29... Bxe8 {[%clk 0:00:13.7]} 30. Ra7
{[%clk 0:00:15]} 30... Kg8 {[%clk 0:00:14.9]} 31. Rxa6 {[%clk 0:00:14.5]} 31...
Bxb2 {[%clk 0:00:15.8]} 32. Ra7 {[%clk 0:00:09.5]} 32... Bf6 {[%clk 0:00:15.9]}
33. Rb7 {[%clk 0:00:08.1]} 33... Nd3 {[%clk 0:00:16.4]} 34. Be3 {[%clk
0:00:06.7]} 34... h6 {[%clk 0:00:15.6]} 35. Kf1 {[%clk 0:00:03.2]} 35... Bf7
{[%clk 0:00:16]} 36. Rb8+ {[%clk 0:00:03.8]} 36... Kh7 {[%clk 0:00:17]} 37. Ra8
{[%clk 0:00:05.2]} 37... Bc4 {[%clk 0:00:17.8]} 38. Kg1 {[%clk 0:00:05.8]} 38...
Kg6 {[%clk 0:00:18.3]} 39. h3 {[%clk 0:00:05.9]} 39... Ne5 {[%clk 0:00:17.5]}
40. Kf2 {[%clk 0:00:04.3]} 40... Kf5 {[%clk 0:00:18.8]} 41. g4+ {[%clk
0:00:04.9]} 41... Ke6 {[%clk 0:00:19.7]} 42. Kg3 {[%clk 0:00:03.2]} 42... Nd3
{[%clk 0:00:16]} 43. Ra6+ {[%clk 0:00:04.2]} 43... Kd5 {[%clk 0:00:16.1]} 44.
Bxh6 {[%clk 0:00:03.3]} 44... Be5+ {[%clk 0:00:15.8]} 45. f4 {[%clk 0:00:04.7]}
45... gxh6 {[%clk 0:00:16.2]} 46. fxe5 {[%clk 0:00:06.1]} 46... Nxe5 {[%clk
0:00:17.6]} 47. Rxh6 {[%clk 0:00:07.3]} 47... Bxa2 {[%clk 0:00:18.4]} 48. g5
{[%clk 0:00:04.7]} 48... Bb1 {[%clk 0:00:18.9]} 49. Rb6 {[%clk 0:00:05.1]} 49...
Kc5 {[%clk 0:00:20.1]} 50. Rb8 {[%clk 0:00:04.7]} 50... b4 {[%clk 0:00:19.9]}
51. h4 {[%clk 0:00:05.7]} 51... Bd3 {[%clk 0:00:19.4]} 52. h5 {[%clk 0:00:05.9]}
52... Bb5 {[%clk 0:00:19.5]} 53. h6 {[%clk 0:00:04.6]} 53... b3 {[%clk
0:00:20.8]} 54. h7 {[%clk 0:00:05.6]} 54... b2 {[%clk 0:00:21.8]} 55. h8=Q
{[%clk 0:00:06]} 55... b1=Q {[%clk 0:00:23]} 56. Qxe5+ {[%clk 0:00:06.3]} 56...
Kc4 {[%clk 0:00:24.4]} 57. Qxb5+ {[%clk 0:00:06.1]} 57... Qxb5 {[%clk
0:00:25.1]} 58. Rxb5 {[%clk 0:00:08]} 1-0

[Event "*** Titled Tuesday Blitz"]
[Site "Chess.com"]
[Date "2019.12.03"]
[Round "9"]
[White "Kislov_Oleg"]
[Black "Sajkochess"]
[Result "0-1"]
[WhiteElo "2495"]
[BlackElo "2290"]
[TimeControl "180+2"]
[EndTime "15:07:19 PST"]
[Termination "Sajkochess won by resignation"]

1. e4 {[%clk 0:02:36.5]} 1... c5 {[%clk 0:02:59.2]} 2. Nf3 {[%clk 0:02:36.9]}
2... e6 {[%clk 0:03:00.3]} 3. c3 {[%clk 0:02:37.9]} 3... d5 {[%clk 0:02:59.5]}
4. e5 {[%clk 0:02:38.2]} 4... d4 {[%clk 0:02:59.4]} 5. g3 {[%clk 0:02:31.2]}
5... Nc6 {[%clk 0:02:53.7]} 6. Bg2 {[%clk 0:02:31.3]} 6... Nge7 {[%clk
0:02:54.2]} 7. O-O {[%clk 0:02:31.3]} 7... Ng6 {[%clk 0:02:43.7]} 8. Re1 {[%clk
0:02:31]} 8... Qc7 {[%clk 0:02:44.7]} 9. Na3 {[%clk 0:01:57]} 9... a6 {[%clk
0:02:38.4]} 10. cxd4 {[%clk 0:01:53]} 10... Nxd4 {[%clk 0:02:06.2]} 11. Nxd4
{[%clk 0:01:48]} 11... cxd4 {[%clk 0:02:06.6]} 12. d3 {[%clk 0:01:43.7]} 12...
Nxe5 {[%clk 0:02:00.8]} 13. Bf4 {[%clk 0:01:43.9]} 13... Bd6 {[%clk 0:02:01.1]}
14. Rc1 {[%clk 0:01:43.4]} 14... Qb8 {[%clk 0:02:01.9]} 15. Bxe5 {[%clk
0:01:36.4]} 15... Bxe5 {[%clk 0:02:01.6]} 16. Rxc8+ {[%clk 0:01:36.4]} 16...
Qxc8 {[%clk 0:02:00.1]} 17. Rxe5 {[%clk 0:01:38.3]} 17... O-O {[%clk 0:01:44.2]}
18. Nc4 {[%clk 0:01:38]} 18... Qc7 {[%clk 0:01:42.7]} 19. Re4 {[%clk 0:01:36.1]}
19... b5 {[%clk 0:01:27.4]} 20. Rxd4 {[%clk 0:01:25]} 20... Rad8 {[%clk
0:01:03.3]} 21. Rxd8 {[%clk 0:01:23.5]} 21... Rxd8 {[%clk 0:01:04.3]} 22. Ne3
{[%clk 0:01:21.8]} 22... Qe5 {[%clk 0:01:04]} 23. Qd2 {[%clk 0:01:12.3]} 23...
Qd4 {[%clk 0:00:48.9]} 24. Bf1 {[%clk 0:01:12.5]} 24... Rc8 {[%clk 0:00:41.7]}
25. a3 {[%clk 0:01:03.3]} 25... g6 {[%clk 0:00:40.7]} 26. f4 {[%clk 0:00:56.4]}
26... h5 {[%clk 0:00:39.8]} 27. Kf2 {[%clk 0:00:56.2]} 27... Kg7 {[%clk
0:00:37.9]} 28. h4 {[%clk 0:00:56.4]} 28... Rc5 {[%clk 0:00:28.4]} 29. Be2
{[%clk 0:00:56.1]} 29... e5 {[%clk 0:00:26.7]} 30. Qb4 {[%clk 0:00:53.9]} 30...
a5 {[%clk 0:00:18.7]} 31. Qxd4 {[%clk 0:00:53.1]} 31... exd4 {[%clk 0:00:20.3]}
32. Nd1 {[%clk 0:00:46.7]} 32... Rc2 {[%clk 0:00:13]} 33. Kf3 {[%clk 0:00:39.3]}
33... f5 {[%clk 0:00:11.8]} 34. Kf2 {[%clk 0:00:39.2]} 34... Kf6 {[%clk
0:00:12.3]} 35. b3 {[%clk 0:00:34.4]} 35... a4 {[%clk 0:00:09.5]} 36. bxa4
{[%clk 0:00:35.4]} 36... bxa4 {[%clk 0:00:10.6]} 37. Ke1 {[%clk 0:00:28.2]}
37... Ra2 {[%clk 0:00:10.7]} 38. Bf3 {[%clk 0:00:29.4]} 38... Rxa3 {[%clk
0:00:10.9]} 39. Nb2 {[%clk 0:00:28.3]} 39... Ra1+ {[%clk 0:00:04.1]} 40. Kd2
{[%clk 0:00:29.4]} 40... Ra2 {[%clk 0:00:05.2]} 41. Kc1 {[%clk 0:00:28.6]} 41...
a3 {[%clk 0:00:06.3]} 42. Nc4 {[%clk 0:00:29.7]} 42... Rf2 {[%clk 0:00:06.9]}
43. Nxa3 {[%clk 0:00:24.9]} 43... Rxf3 {[%clk 0:00:08.1]} 44. Kd2 {[%clk
0:00:24.3]} 44... Rxg3 {[%clk 0:00:09.3]} 45. Nb5 {[%clk 0:00:26]} 45... Rg2+
{[%clk 0:00:10.6]} 46. Ke1 {[%clk 0:00:25.3]} 46... Rg4 {[%clk 0:00:12.2]} 47.
Nxd4 {[%clk 0:00:26.4]} 47... Rxf4 {[%clk 0:00:13.2]} 48. Ne2 {[%clk 0:00:27.6]}
48... Rxh4 {[%clk 0:00:14.3]} 49. Kf2 {[%clk 0:00:29.5]} 49... Ke6 {[%clk
0:00:15.3]} 50. Kg3 {[%clk 0:00:27.6]} 50... g5 {[%clk 0:00:16.6]} 51. Ng1
{[%clk 0:00:26.9]} 51... Kd5 {[%clk 0:00:17.3]} 52. Kf2 {[%clk 0:00:24.1]} 52...
g4 {[%clk 0:00:15.2]} 53. Kg3 {[%clk 0:00:24.7]} 53... Rh1 {[%clk 0:00:15]} 54.
Ne2 {[%clk 0:00:26.2]} 54... Re1 {[%clk 0:00:15.7]} 55. Nf4+ {[%clk 0:00:27]}
55... Kd4 {[%clk 0:00:16.1]} 56. Nxh5 {[%clk 0:00:27.7]} 56... Ke3 {[%clk
0:00:16.3]} 57. Nf4 {[%clk 0:00:23.4]} 57... Rg1+ {[%clk 0:00:16.6]} 58. Ng2+
{[%clk 0:00:23.6]} 58... Kxd3 {[%clk 0:00:16.2]} 59. Kf2 {[%clk 0:00:24.2]}
59... Rxg2+ {[%clk 0:00:16.9]} 60. Kxg2 {[%clk 0:00:25.3]} 60... Ke2 {[%clk
0:00:18.3]} 0-1

[Event "*** Titled Tuesday Blitz"]
[Site "Chess.com"]
[Date "2019.12.03"]
[Round "9"]
[White "Witik"]
[Black "Eloist"]
[Result "0-1"]
[WhiteElo "2563"]
[BlackElo "2414"]
[TimeControl "180+2"]
[EndTime "15:07:20 PST"]
[Termination "Eloist won by resignation"]

1. e4 {[%clk 0:03:01.9]} 1... e6 {[%clk 0:03:00.6]} 2. d4 {[%clk 0:02:59.3]}
2... d5 {[%clk 0:03:01.7]} 3. Nc3 {[%clk 0:02:59.6]} 3... Nf6 {[%clk 0:03:01.9]}
4. e5 {[%clk 0:03:00.8]} 4... Nfd7 {[%clk 0:03:02.6]} 5. Nce2 {[%clk 0:03:02.7]}
5... c5 {[%clk 0:03:03.5]} 6. c3 {[%clk 0:03:04]} 6... Nc6 {[%clk 0:03:03]} 7.
f4 {[%clk 0:03:05]} 7... Be7 {[%clk 0:02:52.2]} 8. Nf3 {[%clk 0:03:05.7]} 8...
b5 {[%clk 0:02:51]} 9. a3 {[%clk 0:03:05.5]} 9... a5 {[%clk 0:02:51]} 10. f5
{[%clk 0:03:00.8]} 10... exf5 {[%clk 0:02:46.8]} 11. Nf4 {[%clk 0:03:01.2]}
11... Nb6 {[%clk 0:02:34.3]} 12. Bxb5 {[%clk 0:03:01.1]} 12... Bd7 {[%clk
0:02:11.8]} 13. e6 {[%clk 0:02:56.7]} 13... fxe6 {[%clk 0:02:02.1]} 14. Bxc6
{[%clk 0:02:30.4]} 14... Bxc6 {[%clk 0:02:02.5]} 15. Ne5 {[%clk 0:02:31.8]}
15... O-O {[%clk 0:01:05.6]} 16. Nxc6 {[%clk 0:02:29.7]} 16... Bh4+ {[%clk
0:01:02.4]} 17. g3 {[%clk 0:02:25.4]} 17... Qd6 {[%clk 0:00:37.5]} 18. gxh4
{[%clk 0:02:04.7]} 18... Qxc6 {[%clk 0:00:37.6]} 19. O-O {[%clk 0:01:52.9]}
19... a4 {[%clk 0:00:32.5]} 20. Be3 {[%clk 0:01:37.7]} 20... Nc4 {[%clk
0:00:32.4]} 21. Bf2 {[%clk 0:01:37.8]} 21... Rab8 {[%clk 0:00:20.6]} 22. Qe2
{[%clk 0:01:32.9]} 22... Rfe8 {[%clk 0:00:18.9]} 23. Rab1 {[%clk 0:01:28.5]}
23... e5 {[%clk 0:00:19.7]} 24. dxe5 {[%clk 0:01:28.8]} 24... Rxe5 {[%clk
0:00:20.6]} 25. Qc2 {[%clk 0:01:14.6]} 25... Re4 {[%clk 0:00:19.7]} 26. Qc1
{[%clk 0:00:53.1]} 26... Qd6 {[%clk 0:00:19.2]} 27. Bg3 {[%clk 0:00:54.2]} 27...
Ne3 {[%clk 0:00:19.2]} 28. Rf3 {[%clk 0:00:45.2]} 28... d4 {[%clk 0:00:19.9]}
29. cxd4 {[%clk 0:00:41.9]} 29... cxd4 {[%clk 0:00:20.9]} 30. Nd3 {[%clk
0:00:41.3]} 30... f4 {[%clk 0:00:21.1]} 31. Rxf4 {[%clk 0:00:41.2]} 31... Rxf4
{[%clk 0:00:20.5]} 32. Bxf4 {[%clk 0:00:42.3]} 32... Qg6+ {[%clk 0:00:20.7]} 33.
Bg3 {[%clk 0:00:43.6]} 33... Qe4 {[%clk 0:00:21.1]} 34. Qd2 {[%clk 0:00:37.7]}
34... Rf8 {[%clk 0:00:21.7]} 35. Re1 {[%clk 0:00:33.1]} 35... Rf3 {[%clk
0:00:21.9]} 36. Qe2 {[%clk 0:00:22.2]} 36... Qg4 {[%clk 0:00:21.7]} 37. Kh1
{[%clk 0:00:11.5]} 37... h6 {[%clk 0:00:18.2]} 38. Nf2 {[%clk 0:00:11.3]} 38...
Qf5 {[%clk 0:00:17.2]} 39. Kg1 {[%clk 0:00:11]} 39... Kh8 {[%clk 0:00:16.4]} 40.
Qd3 {[%clk 0:00:10.9]} 40... Rxf2 {[%clk 0:00:15.2]} 41. Qxf5 {[%clk 0:00:09.5]}
41... Rxf5 {[%clk 0:00:17.1]} 42. Bf2 {[%clk 0:00:10.1]} 42... Re5 {[%clk
0:00:14.8]} 43. Bxe3 {[%clk 0:00:11.1]} 43... dxe3 {[%clk 0:00:16]} 44. Kf1
{[%clk 0:00:12.5]} 44... Re4 {[%clk 0:00:16]} 45. h5 {[%clk 0:00:12]} 45... Re5
{[%clk 0:00:16.7]} 46. Kg2 {[%clk 0:00:11.7]} 46... Kg8 {[%clk 0:00:16.3]} 47.
Kg3 {[%clk 0:00:12.3]} 47... Kf7 {[%clk 0:00:17.2]} 48. Re2 {[%clk 0:00:10.7]}
48... Kf6 {[%clk 0:00:17.4]} 49. Kf4 {[%clk 0:00:12.1]} 49... Rxh5 {[%clk
0:00:16.2]} 50. Kxe3 {[%clk 0:00:13.5]} 50... Re5+ {[%clk 0:00:16.9]} 51. Kd3
{[%clk 0:00:15]} 51... Rxe2 {[%clk 0:00:18]} 52. Kxe2 {[%clk 0:00:16.4]} 52...
g5 {[%clk 0:00:19.3]} 53. Kd3 {[%clk 0:00:16.8]} 53... Ke5 {[%clk 0:00:19.9]}
54. b4 {[%clk 0:00:16.4]} 54... axb3 {[%clk 0:00:20.4]} 55. Kc3 {[%clk
0:00:17.7]} 55... g4 {[%clk 0:00:21]} 56. Kxb3 {[%clk 0:00:19.2]} 56... h5
{[%clk 0:00:22.1]} 57. Kc3 {[%clk 0:00:20.8]} 57... h4 {[%clk 0:00:23.4]} 58.
Kd2 {[%clk 0:00:22.3]} 58... g3 {[%clk 0:00:24.5]} 59. hxg3 {[%clk 0:00:22.1]}
59... h3 {[%clk 0:00:25.5]} 0-1

[Event "*** Titled Tuesday Blitz"]
[Site "Chess.com"]
[Date "2019.12.03"]
[Round "9"]
[White "Laico"]
[Black "Bad4life"]
[Result "1-0"]
[WhiteElo "2337"]
[BlackElo "2380"]
[TimeControl "180+2"]
[EndTime "15:07:33 PST"]
[Termination "Laico won by resignation"]

1. e4 {[%clk 0:03:01.9]} 1... c5 {[%clk 0:02:59.4]} 2. Nc3 {[%clk 0:03:02.5]}
2... a6 {[%clk 0:02:57.9]} 3. g3 {[%clk 0:03:02.9]} 3... b5 {[%clk 0:02:58.4]}
4. Bg2 {[%clk 0:03:03.8]} 4... Bb7 {[%clk 0:02:59.9]} 5. d3 {[%clk 0:03:03.5]}
5... e6 {[%clk 0:03:01.4]} 6. f4 {[%clk 0:03:02.6]} 6... d5 {[%clk 0:03:02.7]}
7. exd5 {[%clk 0:03:01.9]} 7... Nf6 {[%clk 0:03:03.8]} 8. Qe2 {[%clk 0:02:52.1]}
8... Nxd5 {[%clk 0:03:00.8]} 9. f5 {[%clk 0:02:51.1]} 9... Be7 {[%clk
0:02:52.1]} 10. fxe6 {[%clk 0:02:41.6]} 10... O-O {[%clk 0:02:52.9]} 11. Nf3
{[%clk 0:02:34.6]} 11... Nxc3 {[%clk 0:02:48.5]} 12. bxc3 {[%clk 0:02:32.9]}
12... Bf6 {[%clk 0:02:49.9]} 13. O-O {[%clk 0:02:02.4]} 13... Nc6 {[%clk
0:02:42]} 14. exf7+ {[%clk 0:01:54.7]} 14... Rxf7 {[%clk 0:02:38.1]} 15. Qe6
{[%clk 0:01:47.5]} 15... Qf8 {[%clk 0:02:01]} 16. Ng5 {[%clk 0:01:12.9]} 16...
Nd8 {[%clk 0:02:01.7]} 17. Qb6 {[%clk 0:01:12.8]} 17... Bxg2 {[%clk 0:01:56.4]}
18. Kxg2 {[%clk 0:01:13.4]} 18... Bxg5 {[%clk 0:01:45.1]} 19. Bxg5 {[%clk
0:01:13.3]} 19... h6 {[%clk 0:01:25.5]} 20. Bxd8 {[%clk 0:01:02.3]} 20... Qxd8
{[%clk 0:01:24.7]} 21. Qxc5 {[%clk 0:00:58.7]} 21... Rc8 {[%clk 0:01:22.7]} 22.
Qe5 {[%clk 0:00:51.5]} 22... Re7 {[%clk 0:01:16.5]} 23. Qf5 {[%clk 0:00:44.9]}
23... Rxc3 {[%clk 0:01:15]} 24. Rf2 {[%clk 0:00:44.8]} 24... Qa8+ {[%clk
0:01:08.4]} 25. Kg1 {[%clk 0:00:44.6]} 25... Qa7 {[%clk 0:01:04.7]} 26. Kg2
{[%clk 0:00:38.7]} 26... Qb7+ {[%clk 0:01:06]} 27. Kg1 {[%clk 0:00:35.7]} 27...
Qb6 {[%clk 0:01:07.4]} 28. Kg2 {[%clk 0:00:35.4]} 28... Qc6+ {[%clk 0:01:04.7]}
29. Kg1 {[%clk 0:00:32.1]} 29... Rc7 {[%clk 0:00:43.6]} 30. Qf8+ {[%clk
0:00:20.4]} 30... Kh7 {[%clk 0:00:44.8]} 31. Qf5+ {[%clk 0:00:21.3]} 31... g6
{[%clk 0:00:46.2]} 32. Qf8 {[%clk 0:00:18]} 32... Qb6 {[%clk 0:00:42.6]} 33. Re1
{[%clk 0:00:13.1]} 33... Rxc2 {[%clk 0:00:18.7]} 34. Re7+ {[%clk 0:00:11.4]}
34... Rxe7 {[%clk 0:00:19.9]} 35. Qxe7+ {[%clk 0:00:13.3]} 35... Kg8 {[%clk
0:00:18.7]} 36. Qe8+ {[%clk 0:00:10.4]} 36... Kh7 {[%clk 0:00:18.2]} 37. Qf7+
{[%clk 0:00:09.2]} 37... Kh8 {[%clk 0:00:19]} 38. Qf8+ {[%clk 0:00:07.2]} 38...
Kh7 {[%clk 0:00:20.1]} 39. Qf7+ {[%clk 0:00:05.1]} 39... Kh8 {[%clk 0:00:21.5]}
40. Qf8+ {[%clk 0:00:04.1]} 40... Kh7 {[%clk 0:00:22.8]} 41. Kg2 {[%clk
0:00:04.7]} 41... Rxf2+ {[%clk 0:00:15.1]} 42. Qxf2 {[%clk 0:00:06.6]} 42...
Qxf2+ {[%clk 0:00:06]} 43. Kxf2 {[%clk 0:00:07.3]} 43... Kg7 {[%clk 0:00:03.2]}
44. Ke3 {[%clk 0:00:08.5]} 44... Kf6 {[%clk 0:00:04.8]} 45. Kd4 {[%clk
0:00:09.8]} 45... Ke6 {[%clk 0:00:06.4]} 46. Kc5 {[%clk 0:00:11]} 46... g5
{[%clk 0:00:05.9]} 47. Kb6 {[%clk 0:00:11.7]} 47... Kd5 {[%clk 0:00:07.1]} 48.
Kxa6 {[%clk 0:00:12.4]} 48... b4 {[%clk 0:00:08.7]} 49. Kb5 {[%clk 0:00:12.6]}
49... Kd4 {[%clk 0:00:10.3]} 50. Kxb4 {[%clk 0:00:13.4]} 50... Kxd3 {[%clk
0:00:12.2]} 51. a4 {[%clk 0:00:14.6]} 51... Ke3 {[%clk 0:00:14.1]} 52. a5 {[%clk
0:00:16]} 52... Kf3 {[%clk 0:00:16]} 53. a6 {[%clk 0:00:17.4]} 53... Kg2 {[%clk
0:00:17.9]} 54. a7 {[%clk 0:00:18.4]} 54... Kxh2 {[%clk 0:00:19.6]} 55. a8=Q
{[%clk 0:00:19.7]} 55... Kxg3 {[%clk 0:00:21.5]} 56. Qh1 {[%clk 0:00:20.2]}
56... g4 {[%clk 0:00:20.1]} 57. Kc3 {[%clk 0:00:18.2]} 57... Kf2 {[%clk
0:00:20.5]} 58. Qh2+ {[%clk 0:00:12.6]} 58... Kf3 {[%clk 0:00:21.2]} 59. Qxh6
{[%clk 0:00:12.8]} 59... g3 {[%clk 0:00:22.7]} 60. Qf6+ {[%clk 0:00:13.5]} 60...
Kg4 {[%clk 0:00:23.5]} 61. Qf1 {[%clk 0:00:12.9]} 1-0